[Event "*** Titled Tuesday Blitz"]
[Site "Chess.com"]
[Date "2020.10.20"]
[Round "1"]
[White "dopolian"]
[Black "Onischuk_V"]
[Result "1-0"]
[WhiteElo "2419"]
[BlackElo "2797"]
[TimeControl "180+1"]
[EndTime "10:09:01 PDT"]
[Termination "dopolian won on time"]

1. Nf3 {[%clk 0:03:00.1]} 1... g6 {[%clk 0:02:59.4]} 2. d4 {[%clk 0:02:58.9]}
2... Bg7 {[%clk 0:03:00]} 3. g3 {[%clk 0:02:58.4]} 3... d6 {[%clk 0:03:00.6]} 4.
Bg2 {[%clk 0:02:58.5]} 4... Nf6 {[%clk 0:03:01.3]} 5. O-O {[%clk 0:02:58.6]}
5... O-O {[%clk 0:03:02]} 6. b3 {[%clk 0:02:55.9]} 6... b5 {[%clk 0:02:59.7]} 7.
a4 {[%clk 0:02:53.3]} 7... b4 {[%clk 0:02:58.7]} 8. Bb2 {[%clk 0:02:53.2]} 8...
Bb7 {[%clk 0:02:57.8]} 9. Nbd2 {[%clk 0:02:52.6]} 9... a5 {[%clk 0:02:53.8]} 10.
Re1 {[%clk 0:02:50.6]} 10... Ne4 {[%clk 0:02:43.6]} 11. Nxe4 {[%clk 0:02:49.5]}
11... Bxe4 {[%clk 0:02:43.1]} 12. Nd2 {[%clk 0:02:49.7]} 12... Bxg2 {[%clk
0:02:42.7]} 13. Kxg2 {[%clk 0:02:50.6]} 13... c5 {[%clk 0:02:42.9]} 14. Nc4
{[%clk 0:02:48]} 14... Nc6 {[%clk 0:02:42.5]} 15. d5 {[%clk 0:02:39.6]} 15...
Bxb2 {[%clk 0:02:30.9]} 16. Nxb2 {[%clk 0:02:40.5]} 16... Ne5 {[%clk 0:02:31.3]}
17. f4 {[%clk 0:02:38.7]} 17... Nd7 {[%clk 0:02:31.5]} 18. Nc4 {[%clk
0:02:35.6]} 18... Nb6 {[%clk 0:02:31.6]} 19. Qd3 {[%clk 0:02:33.4]} 19... Nxc4
{[%clk 0:02:21.8]} 20. Qxc4 {[%clk 0:02:34.3]} 20... Re8 {[%clk 0:02:19.2]} 21.
e4 {[%clk 0:02:28.9]} 21... Qc7 {[%clk 0:02:18.1]} 22. e5 {[%clk 0:02:17.3]}
22... dxe5 {[%clk 0:02:05.5]} 23. fxe5 {[%clk 0:02:13.4]} 23... Rad8 {[%clk
0:02:06.1]} 24. Rad1 {[%clk 0:02:13]} 24... Qb7 {[%clk 0:01:42.5]} 25. Kg1
{[%clk 0:02:10.3]} 25... Rc8 {[%clk 0:01:17.8]} 26. Kf2 {[%clk 0:01:55]} 26...
Rcd8 {[%clk 0:01:02.1]} 27. Rd2 {[%clk 0:01:33.9]} 27... Rd7 {[%clk 0:00:52.5]}
28. Qxc5 {[%clk 0:01:12.1]} 28... Rc8 {[%clk 0:00:52]} 29. Qd4 {[%clk
0:01:10.9]} 29... Rc3 {[%clk 0:00:43.4]} 30. Re3 {[%clk 0:01:04.1]} 30... Rxe3
{[%clk 0:00:33.5]} 31. Kxe3 {[%clk 0:01:05]} 31... e6 {[%clk 0:00:29.6]} 32. d6
{[%clk 0:00:58]} 32... Qh1 {[%clk 0:00:29.8]} 33. Rf2 {[%clk 0:00:36.3]} 33...
Qe1+ {[%clk 0:00:27.3]} 34. Kd3 {[%clk 0:00:35.5]} 34... Rd8 {[%clk 0:00:20.2]}
35. Qf4 {[%clk 0:00:21.4]} 35... Rf8 {[%clk 0:00:19.7]} 36. Qe3 {[%clk
0:00:16.7]} 36... Qc3+ {[%clk 0:00:18.9]} 37. Ke4 {[%clk 0:00:12.4]} 37... Qc6+
{[%clk 0:00:18.9]} 38. Kf4 {[%clk 0:00:12.5]} 38... f6 {[%clk 0:00:18.1]} 39.
Kg4 {[%clk 0:00:08.3]} 39... f5+ {[%clk 0:00:16.8]} 40. Kh3 {[%clk 0:00:08.7]}
40... Rc8 {[%clk 0:00:15.8]} 41. Rd2 {[%clk 0:00:08.4]} 41... Rd8 {[%clk
0:00:15]} 42. Qd4 {[%clk 0:00:07.6]} 42... g5 {[%clk 0:00:12.5]} 43. Qc4 {[%clk
0:00:05.2]} 43... Qe8 {[%clk 0:00:11]} 44. Qc7 {[%clk 0:00:02.9]} 44... Rd7
{[%clk 0:00:07.7]} 45. Qxa5 {[%clk 0:00:02.7]} 45... Qh5+ {[%clk 0:00:04.2]} 46.
Kg2 {[%clk 0:00:03]} 46... Qg4 {[%clk 0:00:04.8]} 47. Qc5 {[%clk 0:00:02.5]}
47... Qe4+ {[%clk 0:00:04.5]} 48. Kf2 {[%clk 0:00:03.1]} 48... Kf7 {[%clk
0:00:03.6]} 49. Qd4 {[%clk 0:00:03.4]} 49... Qh1 {[%clk 0:00:03.4]} 50. Ke3
{[%clk 0:00:02.7]} 50... Qg1+ {[%clk 0:00:03.5]} 51. Rf2 {[%clk 0:00:03]} 51...
Qe1+ {[%clk 0:00:03.5]} 52. Re2 {[%clk 0:00:02.5]} 52... Qg1+ {[%clk 0:00:03.3]}
53. Rf2 {[%clk 0:00:02.9]} 53... Qe1+ {[%clk 0:00:03.6]} 54. Kf3 {[%clk
0:00:02]} 54... Qh1+ {[%clk 0:00:03.4]} 55. Ke2 {[%clk 0:00:02.1]} 55... g4
{[%clk 0:00:02.6]} 56. Qxb4 {[%clk 0:00:01.4]} 56... Qc1 {[%clk 0:00:02.2]} 57.
Qd4 {[%clk 0:00:01.3]} 57... Qxc2+ {[%clk 0:00:02.3]} 58. Kf1 {[%clk 0:00:01.9]}
58... Qc1+ {[%clk 0:00:02.4]} 59. Kg2 {[%clk 0:00:02.1]} 59... Qc6+ {[%clk
0:00:02.8]} 60. Kg1 {[%clk 0:00:01.8]} 60... Qc1+ {[%clk 0:00:02.8]} 61. Rf1
{[%clk 0:00:02.4]} 61... Qc2 {[%clk 0:00:03.4]} 62. b4 {[%clk 0:00:02.4]} 62...
Qxa4 {[%clk 0:00:03.5]} 63. Qc5 {[%clk 0:00:01.6]} 63... Qa2 {[%clk 0:00:02.8]}
64. Rc1 {[%clk 0:00:01.9]} 64... Qe2 {[%clk 0:00:02.5]} 65. b5 {[%clk
0:00:02.2]} 65... Rb7 {[%clk 0:00:01.9]} 66. b6 {[%clk 0:00:01.5]} 66... Kg6
{[%clk 0:00:02.1]} 67. Qc6 {[%clk 0:00:01.4]} 67... Qe3+ {[%clk 0:00:01.8]} 68.
Kg2 {[%clk 0:00:02]} 68... Qe2+ {[%clk 0:00:02.1]} 69. Kg1 {[%clk 0:00:02.6]}
69... Qe3+ {[%clk 0:00:02.4]} 70. Kh1 {[%clk 0:00:03.2]} 70... Rxb6 {[%clk
0:00:02.8]} 71. Qc8 {[%clk 0:00:02.9]} 71... Kh6 {[%clk 0:00:03.4]} 72. Qxe6+
{[%clk 0:00:02.5]} 72... Kg5 {[%clk 0:00:03.5]} 73. Qf6+ {[%clk 0:00:02.4]}
73... Kh5 {[%clk 0:00:03.5]} 74. Qxf5+ {[%clk 0:00:02.7]} 74... Kh6 {[%clk
0:00:04.2]} 75. Qf4+ {[%clk 0:00:03.2]} 75... Qxf4 {[%clk 0:00:04.4]} 76. gxf4
{[%clk 0:00:04.1]} 76... Rb2 {[%clk 0:00:03.4]} 77. Rd1 {[%clk 0:00:04.2]} 1-0

[Event "*** Titled Tuesday Blitz"]
[Site "Chess.com"]
[Date "2020.10.20"]
[Round "1"]
[White "ambaixador"]
[Black "JonahWillow"]
[Result "0-1"]
[WhiteElo "2303"]
[BlackElo "2638"]
[TimeControl "180+1"]
[EndTime "10:09:07 PDT"]
[Termination "JonahWillow won by checkmate"]

1. Nf3 {[%clk 0:02:58.6]} 1... c5 {[%clk 0:02:58.1]} 2. c4 {[%clk 0:02:57.3]}
2... Nc6 {[%clk 0:02:57.8]} 3. g3 {[%clk 0:02:56.5]} 3... g6 {[%clk 0:02:57.8]}
4. Bg2 {[%clk 0:02:57]} 4... Bg7 {[%clk 0:02:58.5]} 5. O-O {[%clk 0:02:57.5]}
5... e6 {[%clk 0:02:57.9]} 6. Nc3 {[%clk 0:02:57.5]} 6... Nge7 {[%clk
0:02:57.4]} 7. e3 {[%clk 0:02:55.9]} 7... O-O {[%clk 0:02:52.9]} 8. d4 {[%clk
0:02:55.3]} 8... d6 {[%clk 0:02:51.2]} 9. b3 {[%clk 0:02:35.8]} 9... cxd4 {[%clk
0:02:45.4]} 10. Nxd4 {[%clk 0:02:36.7]} 10... Nxd4 {[%clk 0:02:43.9]} 11. exd4
{[%clk 0:02:37.6]} 11... Nf5 {[%clk 0:02:44.6]} 12. Ne2 {[%clk 0:02:35]} 12...
Rb8 {[%clk 0:02:43.9]} 13. Bb2 {[%clk 0:02:34]} 13... b5 {[%clk 0:02:43.6]} 14.
Rb1 {[%clk 0:01:17.4]} 14... Ba6 {[%clk 0:02:15]} 15. c5 {[%clk 0:01:08.5]}
15... b4 {[%clk 0:02:10.5]} 16. Re1 {[%clk 0:00:50.8]} 16... dxc5 {[%clk
0:02:06.3]} 17. d5 {[%clk 0:00:45.7]} 17... exd5 {[%clk 0:01:55.9]} 18. Bxd5
{[%clk 0:00:44.9]} 18... Bxb2 {[%clk 0:01:42.1]} 19. Rxb2 {[%clk 0:00:45.8]}
19... Bxe2 {[%clk 0:01:41.9]} 20. Rbxe2 {[%clk 0:00:44.6]} 20... Nd4 {[%clk
0:01:41.9]} 21. Re5 {[%clk 0:00:44.1]} 21... Qd6 {[%clk 0:01:31.4]} 22. Kg2
{[%clk 0:00:39.3]} 22... Rbd8 {[%clk 0:01:29.8]} 23. Qg4 {[%clk 0:00:36.9]}
23... Kg7 {[%clk 0:01:24.2]} 24. Bc4 {[%clk 0:00:35.8]} 24... Qc6+ {[%clk
0:01:22.1]} 25. Qe4 {[%clk 0:00:35.9]} 25... Qd6 {[%clk 0:00:52.1]} 26. Re7
{[%clk 0:00:30.8]} 26... Rd7 {[%clk 0:00:42.7]} 27. h4 {[%clk 0:00:23.9]} 27...
Rxe7 {[%clk 0:00:27.1]} 28. Qxe7 {[%clk 0:00:24.8]} 28... Qc6+ {[%clk 0:00:28]}
29. Qe4 {[%clk 0:00:19.5]} 29... Qxe4+ {[%clk 0:00:19.4]} 30. Rxe4 {[%clk
0:00:20.4]} 30... Kf6 {[%clk 0:00:20.3]} 31. g4 {[%clk 0:00:19.6]} 31... h6
{[%clk 0:00:20.2]} 32. f4 {[%clk 0:00:16.7]} 32... Rd8 {[%clk 0:00:19.6]} 33.
g5+ {[%clk 0:00:16.6]} 33... hxg5 {[%clk 0:00:20.5]} 34. hxg5+ {[%clk
0:00:14.8]} 34... Kf5 {[%clk 0:00:18.7]} 35. Re5+ {[%clk 0:00:15]} 35... Kxf4
{[%clk 0:00:19.1]} 36. Rxc5 {[%clk 0:00:15.9]} 36... Nf5 {[%clk 0:00:18]} 37.
Bxf7 {[%clk 0:00:14.7]} 37... Kxg5 {[%clk 0:00:17.7]} 38. Rd5 {[%clk 0:00:12.4]}
38... Rc8 {[%clk 0:00:17.3]} 39. Kf3 {[%clk 0:00:12.1]} 39... Kf6 {[%clk
0:00:15.3]} 40. Rd7 {[%clk 0:00:09.5]} 40... Ke5 {[%clk 0:00:13.6]} 41. Bc4
{[%clk 0:00:09.3]} 41... Rh8 {[%clk 0:00:13]} 42. Rxa7 {[%clk 0:00:09.1]} 42...
Rh3+ {[%clk 0:00:12.7]} 43. Kg2 {[%clk 0:00:09.4]} 43... Rc3 {[%clk 0:00:12.9]}
44. Ra5+ {[%clk 0:00:08.9]} 44... Kf4 {[%clk 0:00:13.1]} 45. Rb5 {[%clk
0:00:09]} 45... Rc2+ {[%clk 0:00:13.2]} 46. Kf1 {[%clk 0:00:09.3]} 46... Rxa2
{[%clk 0:00:08.4]} 47. Rxb4 {[%clk 0:00:09]} 47... Ke3 {[%clk 0:00:09]} 48. Bd5
{[%clk 0:00:08.6]} 48... Nd4 {[%clk 0:00:08.7]} 49. Rb8 {[%clk 0:00:07]} 49...
Rf2+ {[%clk 0:00:08.8]} 50. Kg1 {[%clk 0:00:07]} 50... Ne2+ {[%clk 0:00:08.8]}
51. Kh1 {[%clk 0:00:07]} 51... Nf4 {[%clk 0:00:09.3]} 52. Re8+ {[%clk
0:00:05.9]} 52... Kd3 {[%clk 0:00:09.9]} 53. Bc4+ {[%clk 0:00:05.8]} 53... Kd4
{[%clk 0:00:10.3]} 54. Rf8 {[%clk 0:00:05.2]} 54... g5 {[%clk 0:00:09.6]} 55.
Re8 {[%clk 0:00:05.3]} 55... Rb2 {[%clk 0:00:07.9]} 56. Kg1 {[%clk 0:00:05.2]}
56... Kc3 {[%clk 0:00:07.4]} 57. Rg8 {[%clk 0:00:05]} 57... Kd4 {[%clk
0:00:06.4]} 58. Kf1 {[%clk 0:00:05.1]} 58... Rb1+ {[%clk 0:00:06.5]} 59. Kf2
{[%clk 0:00:04.8]} 59... Ke4 {[%clk 0:00:06.9]} 60. Rxg5 {[%clk 0:00:04.2]}
60... Nh3+ {[%clk 0:00:07.3]} 61. Kg3 {[%clk 0:00:04.1]} 61... Nxg5 {[%clk
0:00:07.4]} 62. Kg4 {[%clk 0:00:05]} 62... Rg1+ {[%clk 0:00:07.6]} 63. Kh5
{[%clk 0:00:05.1]} 63... Kf4 {[%clk 0:00:07.8]} 64. Kg6 {[%clk 0:00:04.4]} 64...
Ne4+ {[%clk 0:00:08.3]} 65. Kf7 {[%clk 0:00:04.4]} 65... Nd2 {[%clk 0:00:09]}
66. Be6 {[%clk 0:00:03.8]} 66... Ke5 {[%clk 0:00:09.3]} 67. b4 {[%clk
0:00:03.6]} 67... Rf1+ {[%clk 0:00:08.6]} 68. Ke7 {[%clk 0:00:03.9]} 68... Rh1
{[%clk 0:00:08.6]} 69. b5 {[%clk 0:00:02.9]} 69... Rh7+ {[%clk 0:00:09]} 70. Bf7
{[%clk 0:00:03.2]} 70... Nc4 {[%clk 0:00:09.6]} 71. Kf8 {[%clk 0:00:02.6]} 71...
Nd6 {[%clk 0:00:09.9]} 72. Bg8 {[%clk 0:00:02.7]} 72... Rb7 {[%clk 0:00:09.5]}
73. b6 {[%clk 0:00:03.1]} 73... Rxb6 {[%clk 0:00:09.8]} 74. Bf7 {[%clk
0:00:03.5]} 74... Kf6 {[%clk 0:00:09.8]} 75. Be8 {[%clk 0:00:03.3]} 75... Rb8
{[%clk 0:00:10.1]} 76. Kg8 {[%clk 0:00:02.8]} 76... Rxe8+ {[%clk 0:00:11]} 77.
Kh7 {[%clk 0:00:03.1]} 77... Rd8 {[%clk 0:00:11.9]} 78. Kh6 {[%clk 0:00:03.4]}
78... Rh8# {[%clk 0:00:12.8]} 0-1

[Event "*** Titled Tuesday Blitz"]
[Site "Chess.com"]
[Date "2020.10.20"]
[Round "1"]
[White "simplerXiao"]
[Black "Anton_Demchenko"]
[Result "0-1"]
[WhiteElo "2419"]
[BlackElo "2850"]
[TimeControl "180+1"]
[EndTime "10:09:10 PDT"]
[Termination "Anton_Demchenko won by checkmate"]

1. Nf3 {[%clk 0:01:35.2]} 1... Nf6 {[%clk 0:02:57.7]} 2. d4 {[%clk 0:01:34]}
2... g6 {[%clk 0:02:57.6]} 3. g3 {[%clk 0:01:33.5]} 3... Bg7 {[%clk 0:02:57.6]}
4. Bg2 {[%clk 0:01:34.4]} 4... O-O {[%clk 0:02:58.2]} 5. O-O {[%clk 0:01:34.9]}
5... d6 {[%clk 0:02:59.1]} 6. Re1 {[%clk 0:01:35.1]} 6... Nbd7 {[%clk 0:03:00]}
7. e4 {[%clk 0:01:34.9]} 7... e5 {[%clk 0:03:00.4]} 8. Nc3 {[%clk 0:01:35]} 8...
b6 {[%clk 0:02:59.6]} 9. a4 {[%clk 0:01:35.4]} 9... a6 {[%clk 0:02:59.5]} 10. h3
{[%clk 0:01:32.8]} 10... Bb7 {[%clk 0:02:59.8]} 11. Bg5 {[%clk 0:01:32.4]} 11...
h6 {[%clk 0:02:59.7]} 12. Bd2 {[%clk 0:01:24.1]} 12... Re8 {[%clk 0:02:59.3]}
13. d5 {[%clk 0:01:20.5]} 13... a5 {[%clk 0:02:59.1]} 14. g4 {[%clk 0:01:06.7]}
14... Nc5 {[%clk 0:02:51.2]} 15. Nh2 {[%clk 0:01:00.6]} 15... Bc8 {[%clk
0:02:43.6]} 16. Nf1 {[%clk 0:01:00.3]} 16... h5 {[%clk 0:02:42.4]} 17. g5 {[%clk
0:00:54.8]} 17... Nh7 {[%clk 0:02:42.2]} 18. h4 {[%clk 0:00:54.5]} 18... f6
{[%clk 0:02:42.3]} 19. Ng3 {[%clk 0:00:32.6]} 19... fxg5 {[%clk 0:02:42]} 20.
hxg5 {[%clk 0:00:31.4]} 20... Nxg5 {[%clk 0:02:40.5]} 21. Nxh5 {[%clk 0:00:28]}
21... gxh5 {[%clk 0:02:19.2]} 22. Qxh5 {[%clk 0:00:28.9]} 22... Nh7 {[%clk
0:02:13]} 23. Ne2 {[%clk 0:00:22.6]} 23... Rf8 {[%clk 0:02:09.4]} 24. Ng3 {[%clk
0:00:22.1]} 24... Qf6 {[%clk 0:02:08.8]} 25. Re2 {[%clk 0:00:19.5]} 25... Qf7
{[%clk 0:02:07.6]} 26. Qh4 {[%clk 0:00:18.5]} 26... Bf6 {[%clk 0:02:04.5]} 27.
Qh2 {[%clk 0:00:18]} 27... Bg5 {[%clk 0:02:03.8]} 28. Rf1 {[%clk 0:00:17.1]}
28... Bf4 {[%clk 0:02:03.7]} 29. Bxf4 {[%clk 0:00:15.3]} 29... exf4 {[%clk
0:02:00.8]} 30. Nf5 {[%clk 0:00:14.8]} 30... Bxf5 {[%clk 0:01:55.9]} 31. exf5
{[%clk 0:00:15.7]} 31... Qxf5 {[%clk 0:01:56.5]} 32. Bh3 {[%clk 0:00:14.8]}
32... Qxd5 {[%clk 0:01:49.3]} 33. f3 {[%clk 0:00:13.7]} 33... Rf7 {[%clk
0:01:42.8]} 34. Rg2+ {[%clk 0:00:14.6]} 34... Kh8 {[%clk 0:01:43.3]} 35. Bg4
{[%clk 0:00:13.9]} 35... Rg8 {[%clk 0:01:42]} 36. Qh4 {[%clk 0:00:13.7]} 36...
Qd4+ {[%clk 0:01:39.9]} 37. Kh1 {[%clk 0:00:13.4]} 37... Qf6 {[%clk 0:01:39.8]}
38. Qh3 {[%clk 0:00:12.9]} 38... Rg6 {[%clk 0:01:36.7]} 39. Rh2 {[%clk
0:00:13.8]} 39... Rgg7 {[%clk 0:00:57.7]} 40. Re1 {[%clk 0:00:13.1]} 40... Re7
{[%clk 0:00:56.3]} 41. Rg1 {[%clk 0:00:12.4]} 41... Nd7 {[%clk 0:00:19.3]} 42.
Qh5 {[%clk 0:00:12.1]} 42... Nf8 {[%clk 0:00:18.2]} 43. Qd5 {[%clk 0:00:08]}
43... Re5 {[%clk 0:00:14.8]} 44. Qd3 {[%clk 0:00:08.1]} 44... Qe7 {[%clk
0:00:14.4]} 45. Rf1 {[%clk 0:00:06.1]} 45... Re1 {[%clk 0:00:14.3]} 46. Bf5
{[%clk 0:00:05.9]} 46... Rxf1+ {[%clk 0:00:14.2]} 47. Qxf1 {[%clk 0:00:06.8]}
47... Kg8 {[%clk 0:00:10]} 48. Be4 {[%clk 0:00:06.9]} 48... Qe5 {[%clk
0:00:08.1]} 49. c4 {[%clk 0:00:06]} 49... Kh8 {[%clk 0:00:07.1]} 50. Bd5 {[%clk
0:00:06.1]} 50... Qg5 {[%clk 0:00:05.3]} 51. Qf2 {[%clk 0:00:05.4]} 51... Ng6
{[%clk 0:00:05.3]} 52. Be4 {[%clk 0:00:05.5]} 52... Nf8 {[%clk 0:00:04.6]} 53.
Qf1 {[%clk 0:00:04.7]} 53... Qf6 {[%clk 0:00:04.9]} 54. Qh3 {[%clk 0:00:04.2]}
54... Ne6 {[%clk 0:00:05]} 55. Qf5 {[%clk 0:00:04.1]} 55... Qxf5 {[%clk
0:00:05.1]} 56. Bxf5 {[%clk 0:00:05]} 56... Ng5 {[%clk 0:00:06]} 57. Rh5 {[%clk
0:00:03.5]} 57... Re7 {[%clk 0:00:05.5]} 58. Kg2 {[%clk 0:00:02.9]} 58... Kg7
{[%clk 0:00:06]} 59. Kf1 {[%clk 0:00:03.8]} 59... Kg8 {[%clk 0:00:04.7]} 60. Bg4
{[%clk 0:00:04.7]} 60... Rg7 {[%clk 0:00:04.6]} 61. Rh6 {[%clk 0:00:05.6]} 61...
Nf7 {[%clk 0:00:04]} 62. Rh5 {[%clk 0:00:06.5]} 62... Nf8 {[%clk 0:00:04.8]} 63.
Be6 {[%clk 0:00:07.2]} 63... Rg6 {[%clk 0:00:04.8]} 64. Rf5 {[%clk 0:00:08.1]}
64... Rxe6 {[%clk 0:00:04.9]} 65. Rxf4 {[%clk 0:00:08.7]} 65... Re5 {[%clk
0:00:05.1]} 66. Rg4+ {[%clk 0:00:09.6]} 66... Rg5 {[%clk 0:00:04.4]} 67. f4
{[%clk 0:00:10.5]} 67... Rg7 {[%clk 0:00:04.9]} 68. Rg3 {[%clk 0:00:10.4]} 68...
Rxg3 {[%clk 0:00:05]} 69. Kf2 {[%clk 0:00:11.3]} 69... Rg7 {[%clk 0:00:05.8]}
70. Kf3 {[%clk 0:00:11.9]} 70... Nd7 {[%clk 0:00:06.7]} 71. f5 {[%clk
0:00:12.7]} 71... Nc5 {[%clk 0:00:07.6]} 72. Kf4 {[%clk 0:00:13.4]} 72... Rh7
{[%clk 0:00:07.9]} 73. f6 {[%clk 0:00:14.3]} 73... Rh6 {[%clk 0:00:08.4]} 74.
Kf5 {[%clk 0:00:15.2]} 74... Nd7 {[%clk 0:00:08.2]} 75. b4 {[%clk 0:00:14.5]}
75... Nxf6 {[%clk 0:00:09.1]} 76. c5 {[%clk 0:00:14.7]} 76... dxc5 {[%clk
0:00:09.1]} 77. bxa5 {[%clk 0:00:15.6]} 77... bxa5 {[%clk 0:00:09.2]} 78. Ke6
{[%clk 0:00:16.2]} 78... c4 {[%clk 0:00:08.9]} 79. Ke7 {[%clk 0:00:17.1]} 79...
c3 {[%clk 0:00:09.1]} 80. Ke6 {[%clk 0:00:17.6]} 80... c2 {[%clk 0:00:09.4]} 81.
Kf5 {[%clk 0:00:18.4]} 81... Ne8 {[%clk 0:00:06.6]} 82. Ke4 {[%clk 0:00:18.1]}
82... Rb6 {[%clk 0:00:06.4]} 83. Kd4 {[%clk 0:00:19]} 83... c1=Q {[%clk
0:00:06.2]} 84. Kd5 {[%clk 0:00:19.9]} 84... Qd1+ {[%clk 0:00:05.1]} 85. Kc5
{[%clk 0:00:19.5]} 85... Qc2+ {[%clk 0:00:05.2]} 86. Kd4 {[%clk 0:00:19.4]}
86... Qd2+ {[%clk 0:00:05.5]} 87. Ke4 {[%clk 0:00:19.6]} 87... Qe2+ {[%clk
0:00:05.7]} 88. Kf5 {[%clk 0:00:20.3]} 88... Rf6# {[%clk 0:00:02]} 0-1

[Event "*** Titled Tuesday Blitz"]
[Site "Chess.com"]
[Date "2020.10.20"]
[Round "1"]
[White "Zemerovv"]
[Black "suyu28"]
[Result "0-1"]
[WhiteElo "2277"]
[BlackElo "2604"]
[TimeControl "180+1"]
[EndTime "10:09:26 PDT"]
[Termination "suyu28 won by checkmate"]

1. g3 {[%clk 0:02:22.8]} 1... d5 {[%clk 0:02:36.9]} 2. Bg2 {[%clk 0:02:23.7]}
2... e5 {[%clk 0:02:37]} 3. d3 {[%clk 0:02:22.7]} 3... Nf6 {[%clk 0:02:36.8]} 4.
e3 {[%clk 0:02:23]} 4... Nc6 {[%clk 0:02:36.9]} 5. Ne2 {[%clk 0:02:22.7]} 5...
Be7 {[%clk 0:02:36.4]} 6. h3 {[%clk 0:02:23.2]} 6... O-O {[%clk 0:02:36.2]} 7.
g4 {[%clk 0:02:23.3]} 7... Be6 {[%clk 0:02:34.8]} 8. Ng3 {[%clk 0:02:22.8]} 8...
Re8 {[%clk 0:02:29.9]} 9. Nd2 {[%clk 0:02:21]} 9... a5 {[%clk 0:02:28.8]} 10. a4
{[%clk 0:02:19.5]} 10... Bf8 {[%clk 0:02:25.5]} 11. Nf3 {[%clk 0:02:18.4]} 11...
Rb8 {[%clk 0:01:47.5]} 12. b3 {[%clk 0:02:16]} 12... Bb4+ {[%clk 0:01:44.6]} 13.
Kf1 {[%clk 0:02:15]} 13... Qe7 {[%clk 0:01:32.5]} 14. Bb2 {[%clk 0:02:13.3]}
14... Bd7 {[%clk 0:01:20.4]} 15. g5 {[%clk 0:01:41.4]} 15... Kh8 {[%clk
0:01:20.3]} 16. gxf6 {[%clk 0:01:40.6]} 16... gxf6 {[%clk 0:01:21.2]} 17. Nh4
{[%clk 0:01:38.9]} 17... Rg8 {[%clk 0:01:20.7]} 18. Nhf5 {[%clk 0:01:33.9]}
18... Bxf5 {[%clk 0:01:17.7]} 19. Nxf5 {[%clk 0:01:32.5]} 19... Qd7 {[%clk
0:01:18.6]} 20. e4 {[%clk 0:01:31.4]} 20... Nd8 {[%clk 0:01:15.5]} 21. Qh5
{[%clk 0:01:30.2]} 21... Ne6 {[%clk 0:01:11.2]} 22. Nh6 {[%clk 0:01:27.1]} 22...
Rxg2 {[%clk 0:00:57.2]} 23. Nxf7+ {[%clk 0:01:20.2]} 23... Kg7 {[%clk
0:00:57.2]} 24. Qh6+ {[%clk 0:01:17.6]} 24... Kxf7 {[%clk 0:00:56.8]} 25. Kxg2
{[%clk 0:01:17.2]} 25... Rg8+ {[%clk 0:00:56.4]} 26. Kf1 {[%clk 0:01:15.1]}
26... Rg7 {[%clk 0:00:21.3]} 27. Qh5+ {[%clk 0:01:13.9]} 27... Kg8 {[%clk
0:00:20.9]} 28. Rg1 {[%clk 0:01:13.4]} 28... Rxg1+ {[%clk 0:00:20.5]} 29. Kxg1
{[%clk 0:01:12.4]} 29... Nf4 {[%clk 0:00:20.6]} 30. Qg4+ {[%clk 0:01:12.1]}
30... Qxg4+ {[%clk 0:00:20.6]} 31. hxg4 {[%clk 0:01:11.9]} 31... d4 {[%clk
0:00:21.5]} 32. f3 {[%clk 0:01:11.5]} 32... Kf7 {[%clk 0:00:20.3]} 33. Bc1
{[%clk 0:01:10.5]} 33... Ne2+ {[%clk 0:00:19.8]} 34. Kf2 {[%clk 0:01:09.5]}
34... Nc3 {[%clk 0:00:19.8]} 35. Bd2 {[%clk 0:01:07.1]} 35... Kg6 {[%clk
0:00:20.2]} 36. Bxc3 {[%clk 0:01:06.3]} 36... dxc3 {[%clk 0:00:19.9]} 37. Rh1
{[%clk 0:01:07.1]} 37... Bc5+ {[%clk 0:00:20.2]} 38. Ke2 {[%clk 0:01:05]} 38...
h6 {[%clk 0:00:19.7]} 39. Rh5 {[%clk 0:01:04.2]} 39... Bd4 {[%clk 0:00:19.6]}
40. f4 {[%clk 0:01:02.2]} 40... b6 {[%clk 0:00:13.1]} 41. fxe5 {[%clk
0:01:01.8]} 41... Bxe5 {[%clk 0:00:09.7]} 42. Kf3 {[%clk 0:01:01.5]} 42... c5
{[%clk 0:00:09.8]} 43. Rh1 {[%clk 0:01:00.1]} 43... Kg5 {[%clk 0:00:09.7]} 44.
Ra1 {[%clk 0:01:00.1]} 44... Bd4 {[%clk 0:00:09.2]} 45. Rh1 {[%clk 0:00:58.9]}
45... Be5 {[%clk 0:00:09.5]} 46. Rh5+ {[%clk 0:00:58.1]} 46... Kg6 {[%clk
0:00:09.9]} 47. Ke3 {[%clk 0:00:57.7]} 47... Kg7 {[%clk 0:00:04]} 48. d4 {[%clk
0:00:56.2]} 48... cxd4+ {[%clk 0:00:04]} 49. Kd3 {[%clk 0:00:55.7]} 49... Kg6
{[%clk 0:00:04.9]} 50. Kc4 {[%clk 0:00:55]} 50... Kg7 {[%clk 0:00:04.8]} 51. Rh3
{[%clk 0:00:54.4]} 51... Kg6 {[%clk 0:00:04.5]} 52. Kb5 {[%clk 0:00:53.5]} 52...
Kg5 {[%clk 0:00:05]} 53. Kxb6 {[%clk 0:00:52.7]} 53... Kxg4 {[%clk 0:00:05.5]}
54. Rxh6 {[%clk 0:00:52.2]} 54... d3 {[%clk 0:00:05.4]} 55. cxd3 {[%clk
0:00:50.9]} 55... c2 {[%clk 0:00:03]} 56. Rh1 {[%clk 0:00:51]} 56... Bf4 {[%clk
0:00:03.3]} 57. Kxa5 {[%clk 0:00:48.8]} 57... Kf3 {[%clk 0:00:03.4]} 58. Kb4
{[%clk 0:00:45.9]} 58... Ke2 {[%clk 0:00:01.9]} 59. Kc3 {[%clk 0:00:45.3]} 59...
c1=Q+ {[%clk 0:00:02.3]} 60. Rxc1 {[%clk 0:00:44.3]} 60... Bxc1 {[%clk
0:00:03.2]} 61. b4 {[%clk 0:00:44.2]} 61... Bd2+ {[%clk 0:00:03.6]} 62. Kc4
{[%clk 0:00:43.8]} 62... Ke3 {[%clk 0:00:03.9]} 63. a5 {[%clk 0:00:43]} 63...
Kf4 {[%clk 0:00:04.2]} 64. a6 {[%clk 0:00:43.7]} 64... Be3 {[%clk 0:00:04.1]}
65. b5 {[%clk 0:00:43.1]} 65... Ke5 {[%clk 0:00:04.6]} 66. d4+ {[%clk
0:00:43.1]} 66... Bxd4 {[%clk 0:00:04.8]} 67. Kd3 {[%clk 0:00:38.9]} 67... Bb6
{[%clk 0:00:04.7]} 68. Kc4 {[%clk 0:00:38.1]} 68... Kxe4 {[%clk 0:00:05]} 69.
Kc3 {[%clk 0:00:37.7]} 69... f5 {[%clk 0:00:05.1]} 70. Kd2 {[%clk 0:00:36.8]}
70... f4 {[%clk 0:00:05.6]} 71. Ke2 {[%clk 0:00:36.8]} 71... f3+ {[%clk
0:00:05.7]} 72. Kf1 {[%clk 0:00:36.9]} 72... f2 {[%clk 0:00:06.1]} 73. Ke2
{[%clk 0:00:36.1]} 73... Kd5 {[%clk 0:00:06.6]} 74. Kf1 {[%clk 0:00:35.4]} 74...
Kc4 {[%clk 0:00:07.2]} 75. Ke2 {[%clk 0:00:34.5]} 75... Kxb5 {[%clk 0:00:07.7]}
76. Kf1 {[%clk 0:00:34.2]} 76... Kxa6 {[%clk 0:00:08.2]} 77. Ke2 {[%clk
0:00:33.2]} 77... Kb5 {[%clk 0:00:08.7]} 78. Kf1 {[%clk 0:00:32.9]} 78... Kc4
{[%clk 0:00:09.6]} 79. Ke2 {[%clk 0:00:32.8]} 79... Kd5 {[%clk 0:00:10.5]} 80.
Kf1 {[%clk 0:00:31.8]} 80... Ke4 {[%clk 0:00:11.4]} 81. Ke2 {[%clk 0:00:31.4]}
81... Bc5 {[%clk 0:00:11.7]} 82. Kf1 {[%clk 0:00:32]} 82... Ke3 {[%clk
0:00:12.3]} 83. Kg2 {[%clk 0:00:31.5]} 83... Ke2 {[%clk 0:00:12.9]} 84. Kg3
{[%clk 0:00:30.5]} 84... f1=Q {[%clk 0:00:13.4]} 85. Kg4 {[%clk 0:00:31.4]}
85... Qf3+ {[%clk 0:00:13.5]} 86. Kg5 {[%clk 0:00:32.3]} 86... Be3+ {[%clk
0:00:12.8]} 87. Kg6 {[%clk 0:00:33.2]} 87... Qf4 {[%clk 0:00:12.7]} 88. Kg7
{[%clk 0:00:34.1]} 88... Qf5 {[%clk 0:00:13]} 89. Kg8 {[%clk 0:00:33.5]} 89...
Qd7 {[%clk 0:00:13]} 90. Kf8 {[%clk 0:00:32.5]} 90... Bh6+ {[%clk 0:00:12.7]}
91. Kg8 {[%clk 0:00:31.6]} 91... Qg7# {[%clk 0:00:12.8]} 0-1